bitfinex-derivatives/quotes_BNBF0:USTF0_20250101
["timestamp","ask_amount","ask_price","bid_price","bid_amount"]
[1735748829731,1.47951321,706.33,705.28,1.0602517]
[1735748829931,0.26082072,706.31,705.28,1.0602517]
[1735748830131,0.26082072,706.3,705.28,1.0602517]
[1735748830332,0.26082072,706.32,705.28,1.0602517]
[1735748830532,0.26082072,706.32,705.27,1.0602517]
[1735748831632,1.47951321,706.33,705.27,1.0602517]
[1735748831931,0.26082033,706.32,705.27,1.0602517]
[1735748833231,0.26082033,706.32,704.64,2.16468056]
[1735748833232,0.26082033,706.32,705.24,1.0602517]
[1735748833431,1.47951321,706.33,705.24,1.0602517]
[1735748834028,0.26082343,706.32,705.2,1.0602517]
[1735748834332,0.26082587,706.31,705.2,1.0602517]
[1735748834526,0.26082587,706.3,705.2,1.0602517]
[1735748834729,1.47951321,706.33,705.2,1.0602517]
[1735748834931,0.26082367,706.32,705.2,1.0602517]
[1735748835133,0.26082367,706.32,704.5,2.16468056]
[1735748835134,0.26082367,706.32,705.23,1.0602517]
[1735748836233,0.26082367,706.32,705.24,1.0602517]
[1735748837433,0.26082367,706.32,705.23,1.0602517]
[1735748838632,0.26082367,706.32,705.21,1.0602517]
[1735748839732,0.26082581,706.31,705.21,1.0602517]
[1735748839933,0.26082581,706.3,705.23,1.0602517]
[1735748840134,0.26082581,706.29,705.23,1.0602517]
[1735748840433,1.47951321,706.33,705.23,1.0602517]
[1735748840632,0.26082633,706.32,705.23,1.0602517]
[1735748840833,0.26082633,706.32,705.24,1.0602517]
[1735748841833,0.26082633,706.32,704.59,2.16468056]
[1735748841834,0.26082633,706.32,705.25,1.0602517]
[1735748842240,1.47951321,706.33,705.25,1.0602517]
[1735748842432,0.26082885,706.32,705.25,1.0602517]
[1735748842633,0.26082836,706.31,705.25,1.0602517]
[1735748842933,0.26082836,706.3,705.25,1.0602517]
[1735748843230,0.26082836,706.29,705.25,1.0602517]
[1735748843433,0.26082836,706.32,705.26,1.0602517]
[1735748843735,0.26082836,706.31,705.26,1.0602517]
[1735748843936,0.26082836,706.3,705.26,1.0602517]
[1735748844132,0.26082836,706.32,705.26,1.0602517]
[1735748844337,0.26082836,706.31,705.31,1.0602517]
[1735748844729,1.05621302,706.32,705.31,1.0602517]
[1735748844931,0.26082708,706.31,705.31,1.0602517]
[1735748845538,0.26082525,706.3,705.3,1.0602517]
[1735748845735,0.26082525,706.29,705.3,1.0602517]
[1735748845932,0.26082525,706.32,705.3,1.0602517]
[1735748846132,0.26082525,706.31,705.3,1.0602517]
[1735748846335,0.26082525,706.3,705.3,1.0602517]
[1735748846632,0.26082525,706.29,705.31,1.0602517]
[1735748846835,0.26082525,706.28,705.31,1.0602517]
[1735748847037,0.26082525,706.27,705.31,1.0602517]
[1735748847338,0.26082525,706.26,705.31,1.0602517]
[1735748847537,0.26082619,706.25,705.31,1.0602517]
[1735748847737,0.26082619,706.25,705.11,1.0602517]
[1735748847738,1.05621302,706.3,705.34,1.0602517]
[1735748847936,1.47951845,706.24,705.34,1.0602517]
[1735748848740,1.47951845,706.24,705.22,1.0602517]
[1735748849840,1.47951845,706.24,705.23,1.0602517]
[1735748850642,1.47951845,706.24,705.2,1.0602517]
[1735748851541,1.47951845,706.24,705.21,1.0602517]
[1735748852941,1.47951845,706.24,704.41,2.16468056]
[1735748852942,1.47951845,706.24,705.23,1.0602517]
[1735748853842,1.47951845,706.24,705.2,1.0602517]
[1735748855237,1.47951845,706.24,705.25,1.0602517]
[1735748857039,1.47951845,706.24,705.23,1.0602517]
[1735748858345,1.47951845,706.24,705.25,1.0602517]
[1735748859543,1.47951845,706.24,705.2,1.0602517]
[1735748860642,1.47951845,706.24,704.77,1.0602517]
[1735748860643,1.47951845,706.24,705.23,1.0602517]
[1735748861642,1.47951845,706.24,705.26,1.0602517]
[1735748863647,1.47951845,706.24,705.36,1.0602517]
[1735748864340,0.26084346,706.23,705.36,1.0602517]
[1735748864646,1.47951845,706.24,705.36,1.0602517]
[1735748865442,1.05621302,706.23,705.33,1.0602517]
[1735748866539,0.26083971,706.22,705.33,1.0602517]
[1735748866743,1.05621302,706.23,705.33,1.0602517]
[1735748866941,0.26083656,706.22,705.33,1.0602517]
[1735748867245,1.05621302,706.23,705.33,1.0602517]
[1735748867448,0.26083734,706.22,705.33,1.0602517]
[1735748868149,1.05621302,706.21,705.34,1.0602517]
[1735748868341,0.26083734,706.2,705.34,1.0602517]
[1735748869346,1.05621302,706.18,705.29,1.0602517]
[1735748869548,0.26083734,706.17,705.29,1.0602517]
[1735748870143,1.47972815,706.16,705.29,1.0602517]
[1735748870449,1.47972815,706.16,704.7,2.16468056]
[1735748870450,1.05621302,706.12,705.24,1.0602517]
[1735748870648,0.26083734,706.11,705.24,1.0602517]
[1735748871049,1.05621302,706.12,705.24,1.0602517]
[1735748871250,0.26087716,706.11,705.24,1.0602517]
[1735748871448,0.26087716,706.11,705.21,1.0602517]
[1735748871648,0.26087716,706.13,705.21,1.0602517]
[1735748871850,0.26087716,706.12,705.21,1.0602517]
[1735748872149,0.26087716,706.11,705.21,1.0602517]
[1735748872450,1.47972815,706.16,705.2,1.0602517]
[1735748872451,0.26087716,706.1,705.2,1.0602517]
[1735748872645,0.26087716,706.09,705.2,1.0602517]
[1735748872844,0.26087716,706.08,705.2,1.0602517]
[1735748873049,1.05621302,706.15,705.2,1.0602517]
[1735748873248,0.26087892,706.14,705.2,1.0602517]
[1735748873751,0.26087704,706.13,705.19,1.0602517]
[1735748874049,0.26087704,706.12,705.19,1.0602517]
[1735748874243,1.05621302,706.15,705.19,1.0602517]
[1735748874244,0.26087704,706.11,705.19,1.0602517]
[1735748874444,0.26087704,706.14,705.19,1.0602517]
[1735748874650,1.47972815,706.16,704.99,1.0602517]
[1735748874651,0.26087704,706.13,705.18,1.0602517]
[1735748874851,0.26087704,706.12,705.18,1.0602517]
[1735748875051,0.26087704,706.11,705.18,1.0602517]
[1735748875351,0.26087704,706.1,705.17,1.0602517]
[1735748875550,0.26087704,706.09,705.17,1.0602517]
[1735748875849,0.26087704,706.08,705.17,1.0602517]
[1735748876050,1.47972815,706.16,705.17,1.0602517]
[1735748876349,0.26087726,706.15,705.17,1.0602517]
[1735748876545,0.26087726,706.15,705.16,1.0602517]
[1735748877146,0.26087831,706.14,705.16,1.0602517]
[1735748877349,0.26087831,706.15,705.16,1.0602517]
[1735748877549,0.26087831,706.14,705.18,1.0602517]
[1735748877745,0.26087831,706.15,705.18,1.0602517]
[1735748877951,0.26087831,706.14,705.18,1.0602517]
[1735748878152,0.26087831,706.15,705.18,1.0602517]
[1735748878452,0.26087831,706.14,705.18,1.0602517]
[1735748878652,1.31709133,706.14,705.06,1.0602517]
[1735748878851,0.26087831,706.13,705.06,1.0602517]
[1735748879046,0.26091001,706.12,705.06,1.0602517]
[1735748879251,0.26091001,706.13,705.06,1.0602517]
[1735748879446,0.26091001,706.11,705.06,1.0602517]
[1735748879653,0.26091001,706.1,705.06,1.0602517]
[1735748879852,0.28325001,706.09,705.05,1.0602517]
[1735748880051,0.26091001,706.08,705.05,1.0602517]
[1735748880552,1.4801215,706.07,705.05,1.0602517]
[1735748880753,0.26091001,706.06,705.05,1.0602517]
[1735748881252,0.26091001,706.06,704.57,1.27230204]
[1735748881253,0.26095336,706.05,704.95,1.0602517]
[1735748881454,0.26095336,706.06,704.95,1.0602517]
[1735748881652,0.26095336,706.04,704.95,1.0602517]
[1735748881851,0.26095336,706.03,704.95,1.0602517]
[1735748882048,0.26095336,706.06,704.95,1.0602517]
[1735748882253,0.26095336,706.05,704.95,1.0602517]
[1735748882454,0.26095336,706.05,704.33,2.16468056]
[1735748882455,0.26095336,706.04,704.88,1.0602517]
[1735748882654,0.26095336,706.06,704.88,1.0602517]
[1735748882855,0.26095336,706.05,704.88,1.0602517]
[1735748883054,0.26095336,706.06,704.88,1.0602517]
[1735748883255,1.4801215,706.07,704.88,1.0602517]
[1735748883458,0.26092808,706.06,704.87,1.0602517]
[1735748884056,0.26093374,706.05,704.87,1.0602517]
[1735748884257,0.26093374,706.04,704.87,1.0602517]
[1735748884556,0.26093374,706.03,704.87,1.0602517]
[1735748884757,0.26093374,706.06,704.87,1.0602517]
[1735748884957,0.26093374,706.05,704.87,1.0602517]
[1735748885159,0.26093325,706.04,704.87,1.0602517]
[1735748885353,0.26093325,706.06,704.87,1.0602517]
[1735748885554,1.4801215,706.07,704.87,1.0602517]
[1735748885754,1.4801215,706.07,704.85,1.0602517]
[1735748886862,1.4801215,706.07,704.74,1.0602517]
[1735748887053,1.4801215,706.07,704.74,1.3440443]
[1735748887857,1.4801215,706.07,704.74,0.2837926]
[1735748889160,0.26094386,706.06,704.74,0.2837926]
[1735748891156,1.4801215,706.07,704.79,1.0602517]
[1735748892365,1.4801215,706.07,704.74,0.2837926]
[1735748892864,0.28326204,706.06,704.74,0.2837926]
[1735748894564,0.28326204,706.06,704.77,1.0602517]
[1735748895958,0.28326204,706.06,704.74,0.2837926]
[1735748895959,0.28326204,706.06,704.81,1.0602517]
[1735748896862,0.28326204,706.06,704.82,1.0602517]
[1735748899168,0.28326204,706.06,704.86,1.0602517]
[1735748900769,0.28326204,706.06,704.9,1.0602517]
[1735748901868,0.26090952,706.05,704.99,1.0602517]
[1735748902866,0.26090952,706.05,705.01,1.0602517]
[1735748904368,0.28326204,706.06,705.04,1.0602517]
[1735748904671,0.26090533,706.05,705.04,1.0602517]
[1735748905270,0.26090533,706.05,705.08,1.0602517]
[1735748905973,0.28326204,706.06,705.08,1.0602517]
[1735748906474,0.28326204,706.06,705.1,1.0602517]
[1735748907674,0.28326204,706.06,705.02,1.0602517]
[1735748908677,0.28326204,706.06,704.75,0.7247811]
[1735748908678,0.28326204,706.06,705.04,1.0602517]
[1735748910977,0.28326204,706.06,705.07,1.0602517]
[1735748912177,0.28326204,706.06,705.04,1.0602517]
[1735748914781,0.28326204,706.06,704.94,1.0602517]
[1735748915881,0.28326204,706.06,704.93,1.0602517]
[1735748916073,0.26093216,706.05,704.93,1.0602517]
[1735748917081,0.26093216,706.05,704.97,1.0602517]
[1735748917681,0.26094128,706.04,704.97,1.0602517]
[1735748917883,0.26094128,706.03,704.97,1.0602517]
[1735748918082,0.26094128,706.02,704.96,1.0602517]
[1735748918281,0.26094128,706.01,704.96,1.0602517]
[1735748918582,0.28326204,706.06,704.96,1.0602517]
[1735748918781,0.26093763,706.05,704.96,1.0602517]
[1735748919281,0.26093763,706.05,704.74,0.2837926]
[1735748919282,1.31715065,706.05,704.97,1.0602517]
[1735748919575,0.26093763,706.04,704.97,1.0602517]
[1735748919980,0.26093763,706.04,704.98,1.0602517]
[1735748920178,0.26093763,706.03,704.98,1.0602517]
[1735748920375,0.26093763,706.02,704.98,1.0602517]
[1735748920581,0.26093763,706.05,704.98,1.0602517]
[1735748920781,0.26093763,706.04,704.98,1.0602517]
[1735748920976,0.26093763,706.03,704.98,1.0602517]
[1735748921182,0.26093763,706.03,704.75,1.0602517]
[1735748921183,0.26093763,706.02,705.02,1.0602517]
[1735748922282,0.26093763,706.02,704.99,1.0602517]
[1735748922477,0.26093763,706.04,704.99,1.0602517]
[1735748922682,1.05621302,706.05,704.99,1.0602517]
[1735748922877,0.2609419,706.04,704.99,1.0602517]
[1735748923283,1.05621302,706.03,704.97,1.0602517]
[1735748923484,0.26094412,706.02,704.97,1.0602517]
[1735748924281,1.05621302,706.01,704.98,1.0602517]
[1735748924483,0.26094412,706.0,704.98,1.0602517]
[1735748925083,1.48024217,705.99,705.0,1.0602517]
[1735748925286,0.26094412,705.98,705.0,1.0602517]
[1735748925888,0.26094412,705.98,705.02,1.0602517]
[1735748928185,0.26093227,705.97,705.02,1.0602517]
[1735748928383,0.26093227,705.96,705.02,1.0602517]
[1735748928582,0.26093227,705.98,705.02,1.0602517]
[1735748928787,0.26093227,705.97,705.02,1.0602517]
[1735748928990,0.26093227,705.96,705.02,1.0602517]
[1735748929191,0.26093227,705.95,705.02,1.0602517]
[1735748929392,0.26093549,705.94,705.03,1.0602517]
[1735748929592,1.48024217,705.99,705.03,1.0602517]
[1735748929792,0.26093561,705.98,705.03,1.0602517]
[1735748930591,0.26093561,705.98,705.01,1.0602517]
[1735748930891,0.26093708,705.97,705.01,1.0602517]
[1735748931084,0.26093708,705.96,705.01,1.0602517]
[1735748931288,0.26093708,705.95,705.01,1.0602517]
[1735748931489,0.26093708,705.94,705.01,1.0602517]
[1735748931689,0.26093708,705.93,705.04,1.0602517]
[1735748931983,0.26093708,705.92,705.04,1.0602517]
[1735748932184,0.26093708,705.98,705.04,1.0602517]
[1735748932384,0.26093314,705.97,705.04,1.0602517]
[1735748932586,0.26093314,705.96,705.04,1.0602517]
[1735748932785,0.26093314,705.95,705.07,1.0602517]
[1735748932985,1.48024217,705.99,705.07,1.0602517]
[1735748933188,0.26093122,705.98,705.07,1.0602517]
[1735748933891,0.26093122,705.98,705.04,1.0602517]
[1735748934695,0.26093122,705.98,705.06,1.0602517]
[1735748935396,1.48024217,705.99,705.06,1.0602517]
[1735748935894,1.48024217,705.99,705.05,1.0602517]
[1735748937295,1.48024217,705.99,704.75,1.78586213]
[1735748937296,1.48024217,705.99,705.1,1.0602517]
[1735748938799,1.48024217,705.99,704.95,1.0602517]
[1735748939800,1.48024217,705.99,704.93,1.0602517]
[1735748941202,1.48024217,705.99,704.96,1.0602517]
[1735748942302,1.48024217,705.99,704.94,1.0602517]
[1735748943401,1.48024217,705.99,704.93,1.0602517]
[1735748944504,1.48024217,705.99,704.92,1.0602517]
[1735748946399,1.48024217,705.99,704.74,0.2837926]
[1735748946400,1.48024217,705.99,704.91,1.0602517]
[1735748947097,1.48024217,705.99,705.01,1.0602517]
[1735748949305,1.48024217,705.99,705.02,1.0602517]
[1735748950405,1.48024217,705.99,705.06,1.0602517]
[1735748951600,1.48024217,705.99,705.05,1.0602517]
[1735748953004,1.48024217,705.99,705.1,1.0602517]
[1735748954110,1.48024217,705.99,704.99,1.0602517]
[1735748955310,1.48024217,705.99,704.74,0.2837926]
[1735748955311,1.48024217,705.99,704.84,1.0602517]
[1735748956413,1.48024217,705.99,704.85,1.0602517]
[1735748957709,1.48024217,705.99,704.74,0.2837926]
[1735748963016,1.48024217,705.99,704.75,1.0602517]
[1735748963919,1.48024217,705.99,705.0,1.0602517]
[1735748964918,1.48024217,705.99,705.01,1.0602517]
[1735748965919,1.48024217,705.99,705.06,1.0602517]
[1735748968122,1.48024217,705.99,704.75,0.72548397]
[1735748968123,1.48024217,705.99,705.08,1.0602517]
[1735748968922,1.48024217,705.99,705.07,1.0602517]
[1735748969926,1.48024217,705.99,705.09,1.0602517]
[1735748971028,1.48024217,705.99,705.07,1.0602517]
[1735748971925,1.48024217,705.99,705.08,1.0602517]
[1735748972831,1.48024217,705.99,705.1,1.0602517]
[1735748973933,1.48024217,705.99,705.05,1.0602517]
[1735748974828,1.48024217,705.99,705.04,1.0602517]
[1735748976133,1.48024217,705.99,705.03,1.0602517]
[1735748977035,1.48024217,705.99,705.04,1.0602517]
[1735748978135,1.48024217,705.99,705.06,1.0602517]
[1735748980141,1.48024217,705.99,705.07,1.0602517]
[1735748981238,1.48024217,705.99,705.09,1.0602517]
[1735748982745,1.48024217,705.99,705.1,1.0602517]
[1735748983746,1.48024217,705.99,705.13,1.0602517]
[1735748985943,1.48024217,705.99,705.09,1.0602517]
[1735748986647,1.48024217,705.99,705.01,1.0602517]
[1735748987950,1.48024217,705.99,705.02,1.0602517]
[1735748988949,1.48024217,705.99,704.98,1.0602517]
[1735748990048,1.48024217,705.99,704.97,1.0602517]
[1735748990844,1.48024217,705.99,704.98,1.0602517]
[1735748991850,1.48024217,705.99,704.74,0.2837926]
[1735748991851,1.48024217,705.99,705.01,1.0602517]
[1735748993350,1.48024217,705.99,705.02,1.0602517]
[1735748994155,1.48024217,705.99,705.01,1.0602517]
[1735748995452,1.48024217,705.99,704.98,1.0602517]
[1735748996747,1.48024217,705.99,705.04,1.0602517]
[1735748997652,1.48024217,705.99,705.06,1.0602517]
[1735748998956,1.48024217,705.99,705.05,1.0602517]
[1735749000052,1.48024217,705.99,705.07,1.0602517]
[1735749001256,1.48024217,705.99,705.06,1.0602517]
[1735749002456,1.48024217,705.99,705.05,1.0602517]
[1735749003856,1.48024217,705.99,705.08,1.0602517]
[1735749004154,0.26092608,705.98,705.08,1.0602517]
[1735749004850,0.26092608,705.98,704.75,0.72595167]
[1735749004851,0.26092608,705.98,705.09,1.0602517]
[1735749005457,0.26092798,705.97,705.09,1.0602517]
[1735749005758,1.48024217,705.99,705.09,1.0602517]
[1735749005955,1.48024217,705.99,705.1,1.0602517]
[1735749007057,1.48024217,705.99,705.04,1.0602517]
[1735749007354,0.2609448,705.98,705.04,1.0602517]
[1735749008154,1.48024217,705.99,704.74,0.2837926]
[1735749008155,1.48024217,705.99,704.99,1.0602517]
[1735749008358,0.26095944,705.97,704.99,1.0602517]
[1735749008556,0.26095944,705.96,704.99,1.0602517]
[1735749008853,1.48024217,705.99,704.99,1.0602517]
[1735749009156,0.2609631,705.98,704.99,1.0602517]
[1735749009358,0.2609631,705.98,704.94,1.0602517]
[1735749009657,0.26097199,705.97,704.94,1.0602517]
[1735749009857,0.26097199,705.96,704.94,1.0602517]
[1735749010058,0.26097199,705.98,704.94,1.0602517]
[1735749010259,2.53645519,705.99,704.94,1.0602517]
[1735749010662,1.48024217,705.99,704.87,1.0602517]
[1735749011757,0.28329414,705.98,704.87,1.0602517]
[1735749012160,0.28329414,705.98,704.74,0.2837926]
[1735749017557,0.26096793,705.97,704.74,0.2837926]
[1735749017757,0.28330217,705.96,704.74,0.2837926]
[1735749017963,0.26096793,705.95,704.74,0.2837926]
[1735749018260,0.28331019,705.94,704.74,0.2837926]
[1735749018458,1.33952321,705.94,704.9,1.0602517]
[1735749018862,0.26098785,705.93,704.9,1.0602517]
[1735749019964,0.26098785,705.93,704.82,1.0602517]
[1735749021067,0.26098785,705.93,704.79,1.0602517]
[1735749021268,0.28331019,705.94,704.79,1.0602517]
[1735749021269,0.54430747,705.92,704.79,1.0602517]
[1735749021461,0.26098925,705.91,704.79,1.0602517]
[1735749021864,1.48052556,705.9,704.79,1.0602517]
[1735749022063,0.26098925,705.89,704.79,1.0602517]
[1735749022268,1.48052556,705.9,704.76,1.0602517]
[1735749022468,0.26103499,705.89,704.76,1.0602517]
[1735749022962,1.48052556,705.9,704.76,1.0602517]
[1735749023163,1.48052556,705.9,704.5,1.0602517]
[1735749023762,0.26104173,705.89,704.5,1.0602517]
[1735749024462,0.26104173,705.89,704.53,1.0602517]
[1735749025770,0.26104173,705.89,703.92,1.27230204]
[1735749025771,1.05621302,705.84,704.65,1.0602517]
[1735749025970,0.26104173,705.83,704.65,1.0602517]
[1735749026472,0.26105063,705.82,704.65,1.0602517]
[1735749026875,0.26105063,705.81,704.65,1.0602517]
[1735749027172,0.26105063,705.8,704.59,1.0602517]
[1735749027373,0.26105063,705.84,704.59,1.04691403]
[1735749027572,0.26105063,705.83,704.59,1.04691403]
[1735749027771,0.26105063,705.84,704.59,1.04691403]
[1735749027972,0.26105063,705.83,704.59,1.04691403]
[1735749028171,0.26105063,705.82,704.36,1.0602517]
[1735749028373,0.26105063,705.87,704.36,1.0602517]
[1735749028568,1.05621302,705.88,704.36,1.0602517]
[1735749028769,0.26108293,705.87,704.36,1.0602517]
[1735749028974,0.26108553,705.87,704.36,1.0602517]
[1735749029676,0.26108553,705.87,703.94,1.0602517]
[1735749029975,0.26108553,705.86,703.96,0.28410705]
[1735749030175,0.26108553,705.85,703.96,0.28410705]
[1735749030472,0.26108553,705.84,703.96,0.28410705]
[1735749030771,0.26108553,705.89,704.18,1.0602517]
[1735749030977,1.48052556,705.9,704.18,1.0602517]
[1735749030978,0.26108553,705.88,704.18,1.0602517]
[1735749031275,0.26108553,705.87,704.18,1.0602517]
[1735749031470,0.26104391,705.86,704.18,1.0602517]
[1735749031669,0.26104391,705.89,704.3,1.0602517]
[1735749031869,0.26104391,705.85,704.3,1.0602517]
[1735749032068,0.26103943,705.84,704.3,1.0602517]
[1735749032274,0.26103943,705.87,704.3,1.0602517]
[1735749032471,0.26103943,705.83,704.3,1.0602517]
[1735749032671,0.26103943,705.86,704.3,1.0602517]
[1735749032877,0.26103943,705.85,704.3,1.0602517]
[1735749033075,1.48091933,705.85,704.3,1.0602517]
[1735749033272,0.26103943,705.84,704.3,1.0602517]
[1735749034077,1.48091933,705.85,704.3,1.0602517]
[1735749034276,0.26104433,705.84,704.3,1.0602517]
[1735749034672,1.48091933,705.85,704.3,1.0602517]
[1735749034876,0.26105113,705.84,704.26,1.0602517]
[1735749035073,1.48091933,705.85,704.26,1.0602517]
[1735749035878,1.48091933,705.85,703.96,0.28410705]
[1735749040181,1.48091933,705.85,704.0,1.0602517]
[1735749040579,0.26107603,705.84,704.0,1.0602517]
[1735749041482,0.26107603,705.84,703.97,1.0602517]
[1735749041875,0.2610861,705.83,703.97,1.0602517]
[1735749042076,0.2610861,705.82,703.97,1.0602517]
[1735749042278,0.2610861,705.84,703.97,1.0602517]
[1735749042477,0.2610861,705.81,703.97,1.0602517]
[1735749042781,0.2610861,705.8,704.1,1.0602517]
[1735749042976,0.2610861,705.84,704.1,1.0602517]
[1735749043180,0.2610861,705.83,704.1,1.0602517]
[1735749043381,0.2610861,705.84,704.1,1.0602517]
[1735749043581,0.2610861,705.83,704.1,1.0602517]
[1735749043773,1.48091933,705.85,704.1,1.0602517]
[1735749043774,0.2610861,705.82,704.1,1.0602517]
[1735749043979,0.2610861,705.81,704.25,1.0602517]
[1735749044180,1.48091933,705.85,704.25,1.0602517]
[1735749044181,0.2610861,705.84,704.25,1.0602517]
[1735749044374,0.26108192,705.83,704.25,1.0602517]
[1735749044775,0.26108192,705.84,704.25,1.0602517]
[1735749044978,0.26108192,705.82,704.25,1.0602517]
[1735749045182,0.26108192,705.81,704.27,1.0602517]
[1735749045480,0.26108192,705.8,704.27,1.0602517]
[1735749045676,0.26108192,705.84,704.27,1.0602517]
[1735749045982,0.26108192,705.83,704.27,1.0602517]
[1735749046181,0.26108192,705.82,704.27,1.0602517]
[1735749046381,0.26108192,705.81,704.27,1.0602517]
[1735749046681,0.26108192,705.8,704.27,1.0602517]
[1735749046882,1.48091933,705.85,704.27,1.0602517]
[1735749047082,0.2610691,705.79,704.27,1.0602517]
[1735749047284,0.2610691,705.84,704.26,1.0602517]
[1735749047484,0.2610691,705.83,704.26,1.0602517]
[1735749047786,0.26105298,705.82,704.26,1.0602517]
[1735749048182,0.26105298,705.84,704.26,1.0602517]
[1735749048383,0.26105298,705.81,704.41,1.0602517]
[1735749048587,0.26105298,705.8,704.41,1.0602517]
[1735749048985,0.26105298,705.79,704.41,1.0602517]
[1735749049178,0.26105298,705.78,704.41,1.0602517]
[1735749049379,0.26105298,705.77,704.41,1.0602517]
[1735749049580,0.26105298,705.84,704.41,1.0602517]
[1735749049886,1.48088782,705.76,704.34,1.0602517]
[1735749050085,0.26105488,705.75,704.34,1.0602517]
[1735749050687,0.26105488,705.75,704.37,1.0602517]
[1735749051789,0.26105488,705.75,704.5,1.0602517]
[1735749052582,0.25246112,705.75,704.5,1.0602517]
[1735749052989,0.25246112,705.75,704.36,0.72374734]
[1735749052990,0.25246112,705.75,704.46,1.0602517]
[1735749054190,0.25246112,705.75,704.36,1.78399904]
[1735749054191,0.25246112,705.75,704.36,1.0602517]
[1735749055391,0.25246112,705.75,704.38,1.0602517]
[1735749055591,0.26105195,705.74,704.38,1.0602517]
[1735749055790,0.26105195,705.73,704.38,1.0602517]
[1735749055990,0.26105195,705.72,704.38,1.0602517]
[1735749056185,0.26105195,705.75,704.41,1.0602517]
[1735749056390,0.26105195,705.74,704.41,1.0602517]
[1735749056591,0.26105195,705.73,704.41,1.0602517]
[1735749056791,0.26105195,705.72,704.41,1.0602517]
[1735749056986,0.26105195,705.71,704.41,1.0602517]
[1735749057189,0.26105195,705.75,704.41,1.0602517]
[1735749057390,0.26105195,705.7,704.41,1.0602517]
[1735749057587,0.26108008,705.69,704.41,1.0602517]
[1735749057787,1.48088782,705.76,704.39,1.0602517]
[1735749057788,0.26108008,705.68,704.39,1.0602517]
[1735749057991,0.26108008,705.75,704.39,1.0602517]
[1735749058294,0.26108008,705.74,704.39,1.0602517]
[1735749058493,0.26108008,705.75,704.39,1.0602517]
[1735749058691,0.26108008,705.74,704.39,1.0602517]
[1735749058898,1.05621302,705.64,704.41,1.0602517]
[1735749059097,0.26108008,705.63,704.41,1.0602517]
[1735749059597,1.05621302,705.64,704.41,1.0602517]
[1735749059794,0.2610815,705.63,704.41,1.0602517]
[1735749060196,1.48108215,705.63,704.41,1.0602517]
[1735749060698,1.48108215,705.63,704.38,1.0602517]
[1735749061495,0.2610838,705.62,704.38,1.0602517]
[1735749061899,1.48108215,705.63,704.38,1.0602517]
[1735749062699,1.48108215,705.63,704.35,0.28394974]
[1735749063600,0.2611052,705.62,704.35,0.28394974]
[1735749064600,0.26114563,705.61,704.35,0.28394974]
[1735749065001,0.26114563,705.62,704.35,0.28394974]
[1735749065197,0.26114563,705.6,704.35,0.28394974]
[1735749065500,1.48108215,705.63,704.35,0.28394974]
[1735749065698,1.05621302,705.47,704.35,0.28394974]
[1735749066898,1.48108215,705.63,704.35,0.28394974]
[1735749067099,0.26115995,705.62,704.35,0.28394974]
[1735749069706,0.26115279,705.61,704.35,0.28394974]
[1735749070004,0.5445995,705.6,704.35,0.28394974]
[1735749070304,0.26115279,705.59,704.35,0.28394974]
[1735749072203,0.26115395,705.58,704.35,0.28394974]
[1735749072605,1.05621302,705.56,704.35,0.28394974]
[1735749073006,0.26115395,705.55,704.35,0.28394974]
[1735749073200,1.74266697,705.55,704.35,0.28394974]
[1735749073405,0.26115395,705.54,704.35,0.28394974]
[1735749075105,0.26111771,705.53,704.35,0.28394974]
[1735749075605,0.26111771,705.54,704.35,0.28394974]
[1735749076005,0.26111771,705.53,704.35,0.28394974]
[1735749076506,0.26111771,705.54,704.35,0.28394974]
[1735749077006,1.48151302,705.55,704.35,0.28394974]
[1735749086017,0.26108794,705.54,704.35,0.28394974]
[1735749087115,1.48151302,705.55,704.35,0.28394974]
[1735749087918,0.26108087,705.54,704.35,0.28394974]
[1735749090120,0.26108445,705.53,704.35,0.28394974]
[1735749091122,0.26108087,705.54,704.35,1.34420144]
[1735749092120,0.26108087,705.54,704.38,1.0602517]
[1735749092316,0.26108157,705.53,704.38,1.0602517]
[1735749092724,1.48151302,705.55,704.38,1.0602517]
[1735749093323,1.48151302,705.55,704.37,1.0602517]
[1735749094422,1.48151302,705.55,704.35,0.28394974]
[1735749095224,1.48151302,705.55,704.35,1.34420144]
[1735749096019,0.26109637,705.54,704.35,1.34420144]
[1735749096824,0.26109637,705.54,704.35,0.28394974]
[1735749097224,1.48151302,705.55,704.35,0.28394974]
[1735749111531,0.26111499,705.54,704.35,0.28394974]
[1735749112127,1.31732801,705.54,704.35,0.28394974]
[1735749112328,0.54458982,705.53,704.35,0.28394974]
[1735749112527,0.26111499,705.52,704.35,0.28394974]
[1735749113133,1.05621302,705.5,704.35,0.28394974]
[1735749113828,0.26111499,705.49,704.35,0.28394974]
[1735749114234,1.05621302,705.52,704.35,0.28394974]
[1735749114728,0.26113043,705.48,704.35,0.28394974]
[1735749115330,1.48139739,705.47,704.35,0.28394974]
[1735749115637,1.74252782,705.47,704.35,0.28394974]
[1735749115833,1.48139739,705.47,704.35,0.28394974]
[1735749117734,0.26112791,705.46,704.35,0.28394974]
[1735749119736,0.26113464,705.45,704.35,0.28394974]
[1735749119937,0.26113464,705.46,704.35,0.28394974]
[1735749120337,0.26113464,705.44,704.35,0.28394974]
[1735749120737,0.26113464,705.43,704.35,0.28394974]
[1735749120940,0.26113464,705.46,704.35,0.28394974]
[1735749121140,0.26113666,705.45,704.35,0.28394974]